Cogmind - Beta 13 @@@ ROGUE MODE // 2024.04.26 @ 06:26:23 Player: Khoroshiy Result: Destroyed by S-10 Pest with Light Assault Rifle Performance ------------- Evolutions (0) 0 Regions Visited (2) 400 Robots Destroyed (6) 30 Value Destroyed (253) 253 Prototype IDs (1) 20 Alien Tech Used (0) 0 Bonus (60) 60 TOTAL SCORE: 763 Bonus ------- Follower Combat Kills 60 Cogmind --------- Core Integrity 0/250 Matter 293/300 Energy 160/160 System Corruption 0% Temperature Cool (24) Movement Walking (190) Ox1 Location -10/Mines Parts ------- > --- POWER (1) -------- Light Nuclear Core > --- PROPULSION (2) --- Aluminum Leg Aluminum Leg > --- UTILITY (2) ------ Decoy Drone Bay (16/16) > --- WEAPON (2) ------- Medium Laser Small Laser > --- INVENTORY (5) ---- Light Nuclear Core Small Storage Unit Small Laser Mining Laser Peak State ------------ > --- POWER ------------ Light Nuclear Core > --- PROPULSION ------- Aluminum Leg Aluminum Leg > --- UTILITY ---------- Decoy Drone Bay > --- WEAPON ----------- Medium Laser Small Laser > --- INVENTORY -------- Light Nuclear Core Small Storage Unit Small Laser Mining Laser [Rating: 21] Favorites ----------- Power Light Ion Engine Engine Light Ion Engine Power Core Light Nuclear Core Propulsion Aluminum Leg Leg Aluminum Leg Utility Small Storage Unit Device Decoy Drone Bay Storage Small Storage Unit Weapon Medium Laser Energy Gun Medium Laser Ballistic Gun Assault Rifle Launcher Grenade Launcher Build | -11 -10 -10 ------- Run | Yrd Mat Min Slots Evolved . | . . . Power . | . . . Propulsion . | . . . Utility . | . . . Weapon . | . . . Parts Attached 19 | 6 7 6 Power 4 | 1 2 1 Engine 3 | 1 2 . Core 1 | . . 1 Reactor . | . . . Propulsion 8 | 2 4 2 Treads . | . . . Leg 8 | 2 4 2 Wheel . | . . . Hover . | . . . Flight . | . . . Utility 2 | 1 . 1 Device 1 | . . 1 Storage 1 | 1 . . Processor . | . . . Hackware . | . . . Protection . | . . . Artifact . | . . . Weapon 5 | 2 1 2 Energy Gun 3 | 1 . 2 Energy Cannon . | . . . Ballistic Gun 1 | 1 . . Ballistic Cannon . | . . . Launcher 1 | . 1 . Special Weapon . | . . . Impact Weapon . | . . . Slashing Weapon . | . . . Piercing Weapon . | . . . Special Melee Weapon . | . . . Unidentified Prototypes 1 | . . 1 Parts Lost 4 | . 3 1 Power 1 | . 1 . Propulsion 2 | . 2 . Utility . | . . . Weapon 1 | . . 1 Highest Loss Streak 2 | . 2 1 To Critical Strikes . | . . . Average Slot Usage (%) 68 | . 66 71 Engine 6 | . 11 . Core 4 | . . 10 Leg 24 | . 23 24 Device 2 | . . 6 Storage 11 | . 14 7 Energy Gun 12 | . 5 21 Ballistic Gun 3 | . 5 . Launcher 2 | . 4 . Naked Turns . | . . . Heaviest Build 22 | 12 13 22 Greatest Support 20 | 20 20 20 Greatest Overweight (x) 2 | 1 2 1 Average Overweight (x) . | . . . Largest Inventory Capacity 8 | 8 8 8 Average Capacity 7 | 7 8 6 Most Carried 5 | 2 5 5 Average Carried 3 | 1 3 3 Final Capacity 8 | 8 8 5 Final Carried 4 | 2 4 4 Class Distribution -------------------- 69% | Mutant 30% | Scavenger-Mutant Dominant Class ---------------- Mutant | -10/Materials Scavenger-Mutant | -10/Mines Resources | -11 -10 -10 ----------- Run | Yrd Mat Min Matter Collected 452 | 196 153 103 Remotely . | . . . Salvage Created 207 | . 173 34 Parts 6 | . 5 1 Haulers Intercepted . | . . . Recyclers Shooed . | . . . Parts Field Recycled . | . . . Retrieved Matter . | . . . Parts Self-Destructed . | . . . Prevented . | . . . Kills | -11 -10 -10 ------- Run | Yrd Mat Min Combat Hostiles Destroyed 6 | . 4 2 Guns 2 | . 2 . AOE 4 | . 2 2 Classes Destroyed 1 | . 1 . Grunt 6 | . 4 2 Best Kill Streak 2 | . 2 2 Combat Bots Only 2 | . 2 2 Max Kills in Single Turn 2 | . 2 2 Gunslinging . | . . . Exploded 2 | . 2 2 Melee . | . . . Uniques/NPCs Destroyed . | . . . Combat | -11 -10 -10 -------- Run | Yrd Mat Min Hostile Shots Fired 83 | . 65 18 Missed 30 | . 22 8 Damage Taken 758 | . 539 219 Core 254 | . 196 58 Absorbed by Shields . | . . . Core Remaining (%) 100 | 100 . . Volleys Fired 21 | . 15 6 Largest 2 | . 2 2 Hottest 90 | . 70 90 Shots Fired 37 | . 28 9 Gun 32 | . 26 6 Cannon . | . . . Launcher 5 | . 2 3 Special . | . . . Kinetic 13 | . 13 . Thermal 19 | . 13 6 Explosive 5 | . 2 3 Electromagnetic . | . . . Robot Hit Streak 7 | . 5 7 Robot Miss Streak 3 | . 3 3 Penetration Max . | . . . Secondary Targets . | . . . Shots Hit Robots 24 | . 18 6 Core Hits 13 | . 8 5 Critical Kills . | . . . Critical Parts Destroyed . | . . . Critical Strikes 3 | . 3 . Burn 3 | . 3 . Melee Attacks . | . . . Impact . | . . . Slashing . | . . . Piercing . | . . . Sneak Attacks . | . . . Combat Hostiles . | . . . Follow-up Attacks . | . . . Damage Inflicted 592 | . 340 252 Guns 292 | . 259 33 Cannons . | . . . Explosions 289 | . 81 208 Melee . | . . . Ramming 11 | . . 11 Kinetic 137 | . 137 . Thermal 155 | . 122 33 Explosive 289 | . 81 208 Electromagnetic . | . . . Impact . | . . . Slashing . | . . . Piercing . | . . . Highest Corruption . | . . . Average Corruption . | . . . Corruption Purged . | . . . Corruption Blocked . | . . . Overload Shots . | . . . Overflow Damage 11 | . . 11 Projectiles . | . . . Explosions 11 | . . 11 Melee . | . . . Knockbacks . | . . . Impact . | . . . Kinetic . | . . . Secondary . | . . . Self-Inflicted Damage 80 | . 12 68 Shots 4 | . 1 3 Rammed . | . . . Targets Rammed 1 | . . 1 Kicked 1 | . . 1 Crushed . | . . . Highest Temperature 201 | . 201 90 Average Temperature 79 | . 91 38 Received Heat Transfer 387 | . 324 63 Siege Activations . | . . . Robots Corrupted . | . . . Combat Hostiles . | . . . Parts Fried . | . . . Impact Corruptions . | . . . Robots Melted . | . . . Combat Hostiles . | . . . Parts Melted 1 | . 1 . Heat Transferred 679 | . 592 87 Parts Sabotaged . | . . . Parts Stolen . | . . . Parts Stripped . | . . . Power Chain Reactions . | . . . Alert | -11 -10 -10 ------- Run | Yrd Mat Min Peak Influence 259 | . 259 149 Initial 24 | . . 24 Average 105 | . 95 136 Maximum Alert Level 1 | . 1 . Low Security (%) 97 | 100 94 100 Level 1 2 | . 5 . Level 2 . | . . . Level 3 . | . . . Level 4 . | . . . Level 5 . | . . . High Security . | . . . Max Security . | . . . Squads Dispatched 3 | . 3 . Investigation 1 | . 1 . Extermination . | . . . Reinforcement 2 | . 2 . Assault . | . . . Garrison . | . . . Intercept . | . . . Searches Triggered . | . . . Construction Impeded . | . . . Haulers Reinforced . | . . . Active Scanning Responses . | . . . Cargo Convoy Interrupts . | . . . Stealth | -11 -10 -10 --------- Run | Yrd Mat Min Distress Signals . | . . . Communications Jammed . | . . . Distress Signals . | . . . Times Spotted 24 | . 17 7 Peak Tracking Total 4 | . 4 3 Tactical Retreats 2 | . 2 . Traps | -11 -10 -10 ------- Run | Yrd Mat Min Traps Triggered 5 | . 5 . Indirectly . | . . . Trap Hack Attempts . | . . . Triggered . | . . . Disarmed . | . . . Reprogrammed . | . . . Reused . | . . . Traps Extracted . | . . . Installed . | . . . Triggered . | . . . Machines | -11 -10 -10 ---------- Run | Yrd Mat Min Machines Disabled 1 | . 1 . Max in Single Turn 1 | . 1 . Machines Repaired . | . . . Machines Dismantled . | . . . Machines Sabotaged . | . . . Overloaded Fab Kills . | . . . Hacking | -11 -10 -10 --------- Run | Yrd Mat Min Machines Accessed 6 | . 5 1 Terminals 5 | . 5 . Fabricators . | . . . Repair Stations . | . . . Recycling Units . | . . . Scanalyzers . | . . . Garrison Access . | . . . Total Hacks 15 | . 14 1 Successful 5 | . 4 1 Failed 10 | . 10 . Catastrophic 1 | . 1 . Database Lockouts . | . . . Manual 12 | . 12 . Terminals 14 | . 14 . Fabricators . | . . . Repair Stations . | . . . Recycling Units . | . . . Scanalyzers . | . . . Garrison Access . | . . . Terminal Hacks 5 | . 4 1 Record 1 | . 1 . Open Door 1 | . . 1 Branch Access Points 1 | . 1 . Zone Layout 2 | . 2 . Fabricator Hacks . | . . . Repair Station Hacks . | . . . Recycling Unit Hacks . | . . . Scanalyzer . | . . . Garrison Access Hacks . | . . . Unauthorized Hacks . | . . . Terminals . | . . . Fabricators . | . . . Repair Stations . | . . . Recycling Units . | . . . Scanalyzers . | . . . Garrison Access . | . . . Data Cores Recovered . | . . . Used . | . . . Hacking Detections 5 | . 5 . Full Trace Events 1 | . 1 . Feedback Events . | . . . Feedback Blocked . | . . . Robot Schematics Acquired . | . . . Robots Built . | . . . Authchips . | . . . Time . | . . . Total Robot Build Rating . | . . . Part Schematics Acquired . | . . . Parts Built . | . . . Authchips . | . . . Time . | . . . Total Part Build Rating . | . . . Parts Repaired . | . . . Time . | . . . Parts Recycled . | . . . Recycled Matter . | . . . Retrieved Matter . | . . . Retrieved Components . | . . . Parts Scanalyzed . | . . . Part Schematics Acquired . | . . . Parts Damaged . | . . . Bothacking | -11 -10 -10 ------------ Run | Yrd Mat Min Used RIF Installer . | . . . Robots Hacked . | . . . Non-combat . | . . . Combat . | . . . Robot Hacks Applied . | . . . Relay Couplers Released . | . . . Fabnet Peak Effective % . | . . . Robots Rewired . | . . . Allies Hacked . | . . . Hacks Repelled . | . . . Allies | -11 -10 -10 -------- Run | Yrd Mat Min Total Allies 1 | . . 1 Largest Group 1 | . . 1 Highest-Rated Group 31 | . . 31 Highest-Rated Ally 31 | . . 31 Total Orders . | . . . Ally Attacks 16 | . . 16 Total Damage 168 | . . 168 Kills 2 | . . 2 Allies Corrupted . | . . . Allies Melted . | . . . Intel | -11 -10 -10 ------- Run | Yrd Mat Min Robot Analysis Total . | . . . Derelict Logs Recovered 1 | . . 1 Drone Launches . | . . . Drone Recoveries . | . . . Exploration | -11 -10 -10 ------------- Run | Yrd Mat Min Turns Passed 1009 | 62 548 399 Spaces Moved 690 | 45 390 255 Core 32 | 6 23 3 Treads . | . . . Legs 658 | 39 367 252 Wheels . | . . . Hover . | . . . Flight . | . . . Fastest Speed 50 | 50 100 100 Average Speed 132 | 115 124 146 Slowest Speed 190 | 120 190 190 Overloaded Moves . | . . . Propulsion Burnouts . | . . . Robots Hopped . | . . . Cave-ins Triggered . | . . . Exploration Rate (%) 40 | 4 79 37 Regions Visited 2 Branch Regions 1 Pre-discovered Areas . | . . . Known Exits Taken 1 | . 1 . Unknown Exits Taken 1 | 1 . . Scrap Searched . | . . . Spaces Dug . | . . . Terrain Destroyed 36 | . 13 23 Melee . | . . . Projectile . | . . . AOE 36 | . 13 23 Terrain Rammed . | . . . Walls Destroyed . | . . . Machines Disabled . | . . . Actions | -11 -10 -10 --------- Run | Yrd Mat Min Total 744 | 52 421 271 Wait 6 | . 6 . Move 688 | 44 389 255 Hop . | . . . Pick Up 8 | 2 4 2 Fast Attach 14 | 6 5 3 Attach 5 | . 2 3 Detach 1 | . . 1 Swap . | . . . Drop . | . . . Fire 21 | . 15 6 Melee . | . . . Ram . | . . . Kick 1 | . . 1 Crush . | . . . Escape Stasis . | . . . Rewire . | . . . Trap . | . . . Miscellaneous . | . . . Route ------- -11/Scrapyard -10/Materials (discovered 3 exits: [*Mat x2] / *Min) -10/Mines History --------- Turn | Location | Event 8 | -11/Scrapyard | Discovered new exit (range 15) 63 | -11/Scrapyard | Entered Materials 118 | -10/Materials | Identified exit to Mines 318 | -10/Materials | Build established: Mutant 377 | -10/Materials | Core integrity fell below 50% 382 | -10/Materials | Discovered new exit (range 8) 515 | -10/Materials | Discovered new exit (range 7) 611 | -10/Materials | Entered Mines 612 | -10/Mines | Core integrity fell below 20% 681 | -10/Mines | Received a Mining Laser from a helpful Derelict 696 | -10/Mines | Learned 4 Materials zone layouts 817 | -10/Mines | Found the Drone Emporium 826 | -10/Mines | Found Prototype Device 826 | -10/Mines | Identified Decoy Drone Bay 999 | -10/Mines | Build established: Scavenger-Mutant 1010 | -10/Mines | Destroyed by S-10 Pest with Light Assault Rifle Last Messages --------------- Acquired Lgt. Nuclear Core. R-06 Scavenger collects Heat Sink. Kicked T-07 Excavator. Connecting with SHOP.Sys... >>Open Door Sealed Doors opened. HE-R3I(g): "Well that was anticlimactic. Heard you outside and thought you were from the Merchants Guild. I haven't even officially opened my Drone Emporium yet but am totally ready to tell them where they can shove that C&D." HE-R3I(g): "I'm a fan of the free market. Free drones for all! No strings attached!" Acquired Prototype Device. Identified Decoy Drone Bay. Acquired 3 matter. OG-FTG(g): "You look like you can take it from here!" OG-FTG(g) slips back into the shadows. Map ----- +----------------------------------------------------+ | ???????????????### ##??????????## ##?? | | ??????????????## #??????????# ##? | | ?????????????## #??????????# ## | | ?????????????# #????????????# | | ????????????## ###?????######## | | ????????????# #??????##""## | | ????????????#### #??????#" # | | ????????######## #####??#" ## | | ???????# #??#" ##? | | ???????# ####### ### #??#" #X ####?? | | ???????# #???### ### #??##""## ##????? | | ???????# #?### ## #???###### ##????? | | ???????# ### #????????# ###### | | ???????# ## ### ########## ## # | | ???????# ## #?# | | ???????# ### ##?############# | | ??###### ### #??????????????##### # | | ??# ## % #??????????????????## # | | ??# ## #???????????????????# # | | ??### ## ##???????????????????# # | | ??## ### ##???????????????????# | | ??## ### ####????????????????## | | ??# # ## ##????????????????#### | | ??# # # ##??????????????????? | | ??###### ###????????????????? | | ???????# @ ##???????????????? | | ???????# ### s #???????????????? | | ???????## ### s###########?????? | | ????????#####?# s #?????? | | ??????????????##t t $ | | ???????????????# # ###### ######? | | ??????????????# #### ## #????????????? | | ???????????? ##??##### #????????????? | | ??????????? #???????# #????????????? | | ??????????? #???????# #????????????? | | ?????????? #??????? #????????????? | | ??????????# ##???????###????????????? | | ???????????# #????????????????????????? | | ????????????# #?????????????????????????? | | ?????????????##??????????????????????????? | | ?????????????????????????????????????????? | | ?????????????????????????????????????????? | | ?????????????????????????????????????????? | | ?????????????????????????????????????????? | | ?????????????????????????????????????????? | | ?????????????????????????????????????????? | | ?????????????????????????????????????????? | | ?????????????????????????????????????????? | | ?????????????????????????????????????????? | | ?????????????????????????????????????????? | +----------------------------------------------------+ Best States ------------- Heat Dissipation 25 Energy Generation 14 Energy Capacity 250 Matter Stores 300 Matter Capacity 300 Sight Range 16 Terrain Scan Density 10 Evasion (%) 55 Item Schematics ----------------- None Robot Schematics ------------------ None Fabricated ------------ Nothing Alien Tech Used ----------------- None Achievements -------------- None Challenges ------------ None Game ------ Seed LegThrowingModule Manual? 0 Play Time 00:09:31 Cumulative 12.0 hours Start 2024.04.25 @ 20:38:27 End 2024.04.26 @ 06:26:23 Sessions 2 Manual Loads 0 Difficulty Rogue Special Mode None Game No. 15 Rogue 15 Adventurer 0 Explorer 0 Win Type - Total 0 Types 0/0/0/0/0/0/0/0/0 Lore% 23 Gallery% 18 Achievement% 22 Wizard Run 0 Options --------- Layout 1 ASCII 0 Keyboard 0 Movement Arrows Keybinds 0 Fullscreen 1 Font 24/Smallcaps Map View 50x35 Zoom Use 0% Tactical HUD 0 Map Filters NONE Filters NONE Steam 0 RUN: 01cf7ed8-d379-4854-bcb1-5459e4b71213